[Event "*** Titled Tuesday Blitz"]
[Site "Chess.com"]
[Date "2020.11.24"]
[Round "5"]
[White "Sviridov_Valery"]
[Black "cstevens1"]
[Result "1-0"]
[WhiteElo "2830"]
[BlackElo "2583"]
[TimeControl "180+1"]
[EndTime "11:12:18 PST"]
[Termination "Sviridov_Valery won on time"]

1. Nf3 {[%clk 0:03:00.9]} 1... c5 {[%clk 0:03:00.1]} 2. g3 {[%clk 0:03:00.9]}
2... b6 {[%clk 0:03:00]} 3. Bg2 {[%clk 0:03:01]} 3... Bb7 {[%clk 0:03:00.6]} 4.
O-O {[%clk 0:03:01.5]} 4... Nf6 {[%clk 0:03:01]} 5. c4 {[%clk 0:03:01.6]} 5...
e6 {[%clk 0:03:01]} 6. Nc3 {[%clk 0:03:01.6]} 6... Be7 {[%clk 0:03:01.6]} 7. d4
{[%clk 0:03:01.3]} 7... cxd4 {[%clk 0:03:02.5]} 8. Qxd4 {[%clk 0:03:01.7]} 8...
d6 {[%clk 0:03:03.1]} 9. Rd1 {[%clk 0:03:00.6]} 9... Nbd7 {[%clk 0:03:03.3]} 10.
b3 {[%clk 0:03:01.1]} 10... a6 {[%clk 0:03:03.4]} 11. Bb2 {[%clk 0:03:01.6]}
11... Qc7 {[%clk 0:03:03.2]} 12. Ng5 {[%clk 0:03:01.7]} 12... Bxg2 {[%clk
0:02:54.1]} 13. Kxg2 {[%clk 0:03:02.6]} 13... Rd8 {[%clk 0:02:54]} 14. Nge4
{[%clk 0:02:55.8]} 14... Nc5 {[%clk 0:02:53.7]} 15. Nxc5 {[%clk 0:02:53.2]}
15... bxc5 {[%clk 0:02:52]} 16. Qe3 {[%clk 0:02:51.9]} 16... O-O {[%clk
0:02:47.3]} 17. Na4 {[%clk 0:02:50.9]} 17... Qc6+ {[%clk 0:02:46.3]} 18. f3
{[%clk 0:02:49.6]} 18... Rd7 {[%clk 0:02:20.6]} 19. Rd2 {[%clk 0:02:25.5]} 19...
Rfd8 {[%clk 0:02:19.3]} 20. Rad1 {[%clk 0:02:24.9]} 20... h6 {[%clk 0:01:46]}
21. Bc3 {[%clk 0:02:17.7]} 21... Rb8 {[%clk 0:01:25.6]} 22. Bxf6 {[%clk
0:02:13.3]} 22... Bxf6 {[%clk 0:01:22.6]} 23. Nxc5 {[%clk 0:02:13.2]} 23... Rdd8
{[%clk 0:01:17.5]} 24. Ne4 {[%clk 0:02:10.2]} 24... Be7 {[%clk 0:01:17.8]} 25.
Rd3 {[%clk 0:01:59.3]} 25... d5 {[%clk 0:01:05.2]} 26. cxd5 {[%clk 0:02:00.2]}
26... exd5 {[%clk 0:00:59.2]} 27. Nc3 {[%clk 0:02:00.1]} 27... Bc5 {[%clk
0:00:53.6]} 28. Qc1 {[%clk 0:01:42.6]} 28... d4 {[%clk 0:00:46.6]} 29. Ne4
{[%clk 0:01:42.2]} 29... Rbc8 {[%clk 0:00:47.1]} 30. Nxc5 {[%clk 0:01:25.1]}
30... Qxc5 {[%clk 0:00:48]} 31. Qxc5 {[%clk 0:01:25.6]} 31... Rxc5 {[%clk
0:00:47.6]} 32. e3 {[%clk 0:01:26.5]} 32... Re8 {[%clk 0:00:29.5]} 33. e4 {[%clk
0:01:25.9]} 33... f5 {[%clk 0:00:24.4]} 34. Rxd4 {[%clk 0:01:14.7]} 34... fxe4
{[%clk 0:00:23.3]} 35. fxe4 {[%clk 0:01:02.7]} 35... Rc2+ {[%clk 0:00:22.6]} 36.
R1d2 {[%clk 0:01:03.2]} 36... Rxd2+ {[%clk 0:00:22.3]} 37. Rxd2 {[%clk
0:01:04.1]} 37... Rxe4 {[%clk 0:00:22.9]} 38. Kf3 {[%clk 0:01:04.7]} 38... Re6
{[%clk 0:00:21.2]} 39. Rd7 {[%clk 0:01:04.5]} 39... Rc6 {[%clk 0:00:17.6]} 40.
Ra7 {[%clk 0:01:03.4]} 40... Kh7 {[%clk 0:00:15.2]} 41. Ke4 {[%clk 0:00:53.9]}
41... Kg6 {[%clk 0:00:09.6]} 42. Kd5 {[%clk 0:00:54.2]} 42... Rf6 {[%clk
0:00:10.1]} 43. b4 {[%clk 0:00:54.3]} 43... h5 {[%clk 0:00:06.7]} 44. a4 {[%clk
0:00:51]} 44... Kh6 {[%clk 0:00:07.1]} 45. b5 {[%clk 0:00:50.5]} 45... axb5
{[%clk 0:00:07.9]} 46. axb5 {[%clk 0:00:51.3]} 46... Rf2 {[%clk 0:00:08.1]} 47.
h4 {[%clk 0:00:43.1]} 47... Rf3 {[%clk 0:00:08.3]} 48. Ra6+ {[%clk 0:00:37.2]}
48... g6 {[%clk 0:00:08]} 49. b6 {[%clk 0:00:37.4]} 49... Rxg3 {[%clk
0:00:08.4]} 50. b7 {[%clk 0:00:37.9]} 50... Rb3 {[%clk 0:00:08.8]} 51. Kc6
{[%clk 0:00:38.4]} 51... Rxb7 {[%clk 0:00:01.2]} 52. Kxb7 {[%clk 0:00:38.2]} 1-0

[Event "*** Titled Tuesday Blitz"]
[Site "Chess.com"]
[Date "2020.11.24"]
[Round "5"]
[White "ChessWarrior7197"]
[Black "kingnb"]
[Result "1-0"]
[WhiteElo "2996"]
[BlackElo "2612"]
[TimeControl "180+1"]
[EndTime "11:12:18 PST"]
[Termination "ChessWarrior7197 won by resignation"]

1. e4 {[%clk 0:03:00.2]} 1... d5 {[%clk 0:02:59.7]} 2. exd5 {[%clk 0:02:56.4]}
2... Nf6 {[%clk 0:03:00.2]} 3. d4 {[%clk 0:02:56.3]} 3... Bg4 {[%clk 0:02:58.9]}
4. Be2 {[%clk 0:02:54.8]} 4... Bxe2 {[%clk 0:02:58.7]} 5. Qxe2 {[%clk
0:02:55.7]} 5... Qxd5 {[%clk 0:02:59.3]} 6. Nf3 {[%clk 0:02:56.3]} 6... Nc6
{[%clk 0:02:59.6]} 7. c4 {[%clk 0:02:56.9]} 7... Qf5 {[%clk 0:02:58.4]} 8. O-O
{[%clk 0:02:55.9]} 8... O-O-O {[%clk 0:02:58.4]} 9. d5 {[%clk 0:02:56.3]} 9...
Nb4 {[%clk 0:02:58.4]} 10. Nc3 {[%clk 0:02:56.6]} 10... e6 {[%clk 0:02:57.8]}
11. dxe6 {[%clk 0:02:55.2]} 11... Qxe6 {[%clk 0:02:52.6]} 12. Qxe6+ {[%clk
0:02:54.9]} 12... fxe6 {[%clk 0:02:53.5]} 13. Ng5 {[%clk 0:02:55.6]} 13... Re8
{[%clk 0:02:53]} 14. Rd1 {[%clk 0:02:46.8]} 14... h6 {[%clk 0:02:51]} 15. Nge4
{[%clk 0:02:46]} 15... Be7 {[%clk 0:02:46.4]} 16. a3 {[%clk 0:02:43.8]} 16...
Nc6 {[%clk 0:02:45.5]} 17. b4 {[%clk 0:02:42.7]} 17... Rd8 {[%clk 0:02:45.6]}
18. Be3 {[%clk 0:02:38.7]} 18... Ne5 {[%clk 0:02:45.1]} 19. Rdc1 {[%clk
0:02:32]} 19... Nxc4 {[%clk 0:02:41.6]} 20. Bxa7 {[%clk 0:02:29.7]} 20... c6
{[%clk 0:02:35]} 21. Nc5 {[%clk 0:02:24.2]} 21... Bxc5 {[%clk 0:02:33.3]} 22.
Bxc5 {[%clk 0:02:20.2]} 22... Nd2 {[%clk 0:02:33.3]} 23. Be7 {[%clk 0:02:09]}
23... Rd7 {[%clk 0:02:30.1]} 24. Bxf6 {[%clk 0:02:09]} 24... gxf6 {[%clk
0:02:30.3]} 25. Ra2 {[%clk 0:02:06.7]} 25... e5 {[%clk 0:02:28.9]} 26. Na4
{[%clk 0:02:05.1]} 26... Kb8 {[%clk 0:02:24.8]} 27. Nc5 {[%clk 0:02:04.4]} 27...
Rd5 {[%clk 0:02:25.2]} 28. h4 {[%clk 0:01:59.9]} 28... Rhd8 {[%clk 0:02:18.4]}
29. Rc3 {[%clk 0:01:57]} 29... Rg8 {[%clk 0:02:09.6]} 30. a4 {[%clk 0:01:46.1]}
30... Rg4 {[%clk 0:02:09.4]} 31. a5 {[%clk 0:01:37.8]} 31... Rxh4 {[%clk
0:02:06.7]} 32. a6 {[%clk 0:01:36.7]} 32... Ne4 {[%clk 0:02:04]} 33. Rc1 {[%clk
0:01:15.2]} 33... Nxc5 {[%clk 0:02:04]} 34. bxc5 {[%clk 0:01:16.1]} 34... Rb4
{[%clk 0:01:57.6]} 35. g3 {[%clk 0:01:09.4]} 35... Rb5 {[%clk 0:01:55.9]} 36.
axb7 {[%clk 0:01:07.8]} 36... Rdxc5 {[%clk 0:01:52.1]} 37. Rca1 {[%clk
0:01:07.1]} 37... Rxb7 {[%clk 0:01:51.6]} 38. Ra8+ {[%clk 0:01:07.4]} 38... Kc7
{[%clk 0:01:51.8]} 39. Rf8 {[%clk 0:01:08.3]} 39... e4 {[%clk 0:01:52.1]} 40.
Rxf6 {[%clk 0:01:07.9]} 40... Rb2 {[%clk 0:01:50.3]} 41. Re1 {[%clk 0:01:04.6]}
41... Rc4 {[%clk 0:01:45.8]} 42. Rxh6 {[%clk 0:01:04.4]} 42... c5 {[%clk
0:01:35.6]} 43. Re6 {[%clk 0:01:04.1]} 43... Rbb4 {[%clk 0:01:32.2]} 44. Kg2
{[%clk 0:01:04.2]} 44... Kd7 {[%clk 0:01:30.1]} 45. Rh6 {[%clk 0:01:04.3]} 45...
Rd4 {[%clk 0:01:29.2]} 46. Reh1 {[%clk 0:00:54.1]} 46... Rd2 {[%clk 0:01:24.4]}
47. Ra6 {[%clk 0:00:53.5]} 47... Kc7 {[%clk 0:01:23.4]} 48. Rh7+ {[%clk
0:00:53.2]} 48... Kb8 {[%clk 0:01:23.6]} 49. Re6 {[%clk 0:00:53.7]} 49... Rd8
{[%clk 0:01:20.9]} 50. Rhe7 {[%clk 0:00:49.8]} 50... Rbd4 {[%clk 0:01:10.9]} 51.
Rxe4 {[%clk 0:00:49]} 51... Rxe4 {[%clk 0:01:11.8]} 52. Rxe4 {[%clk 0:00:49.9]}
52... Kc7 {[%clk 0:01:12.7]} 53. g4 {[%clk 0:00:50.4]} 53... Kc6 {[%clk
0:01:07.3]} 54. g5 {[%clk 0:00:50.9]} 54... Kd5 {[%clk 0:01:02.5]} 55. Re1
{[%clk 0:00:50.7]} 55... Rf8 {[%clk 0:01:01.8]} 56. Kg3 {[%clk 0:00:49.4]} 56...
c4 {[%clk 0:01:01.8]} 57. f4 {[%clk 0:00:49.8]} 57... c3 {[%clk 0:01:00.6]} 58.
Kg4 {[%clk 0:00:49.9]} 58... c2 {[%clk 0:00:57.6]} 59. g6 {[%clk 0:00:49.8]}
59... Kd4 {[%clk 0:00:56.6]} 60. f5 {[%clk 0:00:48.8]} 60... Kd3 {[%clk
0:00:55.4]} 61. g7 {[%clk 0:00:48.8]} 61... Rc8 {[%clk 0:00:53.7]} 62. f6 {[%clk
0:00:48.3]} 62... Kd2 {[%clk 0:00:51.9]} 63. Rh1 {[%clk 0:00:48.3]} 63... c1=Q
{[%clk 0:00:50.7]} 64. Rxc1 {[%clk 0:00:47.9]} 64... Rxc1 {[%clk 0:00:51.6]} 65.
Kf5 {[%clk 0:00:46.9]} 65... Rg1 {[%clk 0:00:50.3]} 66. Ke6 {[%clk 0:00:45.2]}
66... Ke3 {[%clk 0:00:49.2]} 67. Kf7 {[%clk 0:00:45.7]} 67... Ke4 {[%clk
0:00:49.6]} 68. g8=Q {[%clk 0:00:46.6]} 68... Rxg8 {[%clk 0:00:47.3]} 69. Kxg8
{[%clk 0:00:47.5]} 1-0

[Event "*** Titled Tuesday Blitz"]
[Site "Chess.com"]
[Date "2020.11.24"]
[Round "5"]
[White "Durarbayli"]
[Black "yobdc"]
[Result "0-1"]
[WhiteElo "2726"]
[BlackElo "2468"]
[TimeControl "180+1"]
[EndTime "11:12:18 PST"]
[Termination "yobdc won on time"]

1. e4 {[%clk 0:03:00.9]} 1... c6 {[%clk 0:02:59.4]} 2. Nf3 {[%clk 0:03:00.2]}
2... d5 {[%clk 0:02:59.5]} 3. Nc3 {[%clk 0:03:01.1]} 3... Bg4 {[%clk 0:02:58.8]}
4. h3 {[%clk 0:03:00.8]} 4... Bxf3 {[%clk 0:02:59.2]} 5. Qxf3 {[%clk 0:03:01.7]}
5... e6 {[%clk 0:02:59.7]} 6. d3 {[%clk 0:03:00.2]} 6... Bb4 {[%clk 0:02:58.9]}
7. Bd2 {[%clk 0:02:57.6]} 7... Nf6 {[%clk 0:02:58.9]} 8. e5 {[%clk 0:02:44]}
8... Nfd7 {[%clk 0:02:50.4]} 9. Qg4 {[%clk 0:02:44.2]} 9... Bf8 {[%clk
0:02:39.2]} 10. f4 {[%clk 0:02:35.3]} 10... c5 {[%clk 0:02:29.9]} 11. g3 {[%clk
0:02:26.2]} 11... Nc6 {[%clk 0:02:27.1]} 12. Bg2 {[%clk 0:02:26.4]} 12... Qb6
{[%clk 0:02:04.4]} 13. b3 {[%clk 0:01:55.9]} 13... h5 {[%clk 0:01:53]} 14. Qd1
{[%clk 0:01:55.1]} 14... c4 {[%clk 0:01:50.3]} 15. bxc4 {[%clk 0:01:53.6]} 15...
dxc4 {[%clk 0:01:49.7]} 16. Rb1 {[%clk 0:01:53.9]} 16... Qc7 {[%clk 0:01:44.2]}
17. Nb5 {[%clk 0:01:43.1]} 17... Qc8 {[%clk 0:01:39.9]} 18. dxc4 {[%clk
0:01:36.2]} 18... a6 {[%clk 0:01:14.1]} 19. Nd6+ {[%clk 0:01:35.9]} 19... Bxd6
{[%clk 0:01:14.1]} 20. exd6 {[%clk 0:01:36.8]} 20... O-O {[%clk 0:01:00.3]} 21.
Qxh5 {[%clk 0:01:34.1]} 21... Nd4 {[%clk 0:01:00.2]} 22. c3 {[%clk 0:01:26.5]}
22... Nf5 {[%clk 0:00:56.1]} 23. Qf3 {[%clk 0:01:11.3]} 23... Qxc4 {[%clk
0:00:49.3]} 24. Rxb7 {[%clk 0:01:06.3]} 24... Nc5 {[%clk 0:00:48.2]} 25. Rc7
{[%clk 0:00:47.8]} 25... Rab8 {[%clk 0:00:45.8]} 26. Kf2 {[%clk 0:00:25.7]}
26... Nxd6 {[%clk 0:00:33]} 27. Kg1 {[%clk 0:00:20.6]} 27... Rfc8 {[%clk
0:00:23]} 28. Rxc8+ {[%clk 0:00:18.8]} 28... Rxc8 {[%clk 0:00:23.9]} 29. Kh2
{[%clk 0:00:19.5]} 29... Qxa2 {[%clk 0:00:23.4]} 30. Rd1 {[%clk 0:00:15.4]}
30... Nde4 {[%clk 0:00:20.7]} 31. Be1 {[%clk 0:00:15.5]} 31... Qc2 {[%clk
0:00:19.9]} 32. Rd4 {[%clk 0:00:11.9]} 32... a5 {[%clk 0:00:18]} 33. Rc4 {[%clk
0:00:06.4]} 33... f5 {[%clk 0:00:17.4]} 34. Qe3 {[%clk 0:00:06.4]} 34... a4
{[%clk 0:00:14.6]} 35. Kg1 {[%clk 0:00:03.3]} 35... a3 {[%clk 0:00:12.7]} 36.
Bxe4 {[%clk 0:00:04]} 36... fxe4 {[%clk 0:00:12.4]} 37. Rxc5 {[%clk 0:00:04.4]}
37... Rxc5 {[%clk 0:00:12.3]} 38. Qxc5 {[%clk 0:00:05.3]} 38... a2 {[%clk
0:00:11.4]} 39. Qc8+ {[%clk 0:00:02.1]} 39... Kh7 {[%clk 0:00:09.3]} 40. Qa8
{[%clk 0:00:02.4]} 40... Qb1 {[%clk 0:00:08.5]} 0-1

[Event "*** Titled Tuesday Blitz"]
[Site "Chess.com"]
[Date "2020.11.24"]
[Round "5"]
[White "HajduIstvanCM"]
[Black "queen_iryna"]
[Result "0-1"]
[WhiteElo "1703"]
[BlackElo "2262"]
[TimeControl "180+1"]
[EndTime "11:12:18 PST"]
[Termination "queen_iryna won on time"]

1. e4 {[%clk 0:03:00.9]} 1... d6 {[%clk 0:03:00.1]} 2. d4 {[%clk 0:02:59.7]}
2... Nf6 {[%clk 0:03:00.7]} 3. Nc3 {[%clk 0:02:59.2]} 3... e5 {[%clk 0:03:00.7]}
4. Nf3 {[%clk 0:02:57.7]} 4... Nbd7 {[%clk 0:03:00]} 5. Be2 {[%clk 0:02:54.5]}
5... Be7 {[%clk 0:02:56.9]} 6. O-O {[%clk 0:02:50.2]} 6... O-O {[%clk
0:02:56.7]} 7. h3 {[%clk 0:02:49]} 7... c6 {[%clk 0:02:55.8]} 8. a4 {[%clk
0:02:47.3]} 8... h6 {[%clk 0:02:51.5]} 9. Be3 {[%clk 0:02:46.2]} 9... Re8 {[%clk
0:02:49]} 10. Qd2 {[%clk 0:02:45.1]} 10... Bf8 {[%clk 0:02:48]} 11. dxe5 {[%clk
0:02:40.5]} 11... dxe5 {[%clk 0:02:47.5]} 12. Rad1 {[%clk 0:02:35.7]} 12... Qc7
{[%clk 0:02:47.2]} 13. Bc4 {[%clk 0:02:28]} 13... Nc5 {[%clk 0:02:46]} 14. Rfe1
{[%clk 0:01:52.7]} 14... Ncxe4 {[%clk 0:02:28.8]} 15. Nxe4 {[%clk 0:01:51.7]}
15... Nxe4 {[%clk 0:02:29.7]} 16. Qe2 {[%clk 0:01:46.3]} 16... Nf6 {[%clk
0:02:25.5]} 17. c3 {[%clk 0:01:25.7]} 17... Be6 {[%clk 0:02:15.5]} 18. Bxe6
{[%clk 0:01:21.4]} 18... Rxe6 {[%clk 0:02:16.4]} 19. Qc2 {[%clk 0:01:14.6]}
19... Nd5 {[%clk 0:02:00.6]} 20. Bc1 {[%clk 0:01:02.9]} 20... Rae8 {[%clk
0:01:36.1]} 21. b4 {[%clk 0:00:56.1]} 21... a5 {[%clk 0:01:28.6]} 22. bxa5
{[%clk 0:00:40]} 22... Qxa5 {[%clk 0:01:24]} 23. Bb2 {[%clk 0:00:36.8]} 23...
Nb6 {[%clk 0:01:15.3]} 24. Ra1 {[%clk 0:00:30.3]} 24... Nc4 {[%clk 0:01:08]} 25.
Qb3 {[%clk 0:00:26.4]} 25... Nxb2 {[%clk 0:00:57.2]} 26. Qxb2 {[%clk 0:00:25.5]}
26... Qa7 {[%clk 0:00:40.5]} 27. Nd2 {[%clk 0:00:24.7]} 27... Bc5 {[%clk
0:00:39.6]} 28. Ne4 {[%clk 0:00:23.6]} 28... R6e7 {[%clk 0:00:26.2]} 29. Nxc5
{[%clk 0:00:18.5]} 29... Qxc5 {[%clk 0:00:25.9]} 30. Qb4 {[%clk 0:00:16.8]}
30... Qa7 {[%clk 0:00:23.8]} 31. a5 {[%clk 0:00:15.2]} 31... e4 {[%clk
0:00:23.7]} 32. Re3 {[%clk 0:00:13.4]} 32... Re5 {[%clk 0:00:18.5]} 33. Qb6
{[%clk 0:00:11.2]} 33... Qxb6 {[%clk 0:00:18.2]} 34. axb6 {[%clk 0:00:11]} 34...
Rb5 {[%clk 0:00:19.1]} 35. Rae1 {[%clk 0:00:07.9]} 35... Rxb6 {[%clk 0:00:19]}
36. Rxe4 {[%clk 0:00:06.6]} 36... Rxe4 {[%clk 0:00:19.9]} 37. Rxe4 {[%clk
0:00:06.5]} 37... Rb3 {[%clk 0:00:20.8]} 38. Rc4 {[%clk 0:00:05.2]} 38... Kf8
{[%clk 0:00:20.2]} 39. Kf1 {[%clk 0:00:04.9]} 39... Ke7 {[%clk 0:00:20.5]} 40.
Ke2 {[%clk 0:00:05.3]} 40... Kd6 {[%clk 0:00:20.8]} 41. Kd3 {[%clk 0:00:05.8]}
41... b5 {[%clk 0:00:20.1]} 42. Rd4+ {[%clk 0:00:05]} 42... Ke6 {[%clk
0:00:20.4]} 43. Kc2 {[%clk 0:00:04]} 43... Ra3 {[%clk 0:00:19.4]} 44. Rd8 {[%clk
0:00:03.6]} 44... Ra2+ {[%clk 0:00:19.3]} 45. Kb3 {[%clk 0:00:02.4]} 45... Rxf2
{[%clk 0:00:19.6]} 46. Rc8 {[%clk 0:00:01.9]} 46... Kd7 {[%clk 0:00:19.7]} 47.
Rf8 {[%clk 0:00:01.3]} 47... Rxg2 {[%clk 0:00:19.7]} 0-1

[Event "*** Titled Tuesday Blitz"]
[Site "Chess.com"]
[Date "2020.11.24"]
[Round "5"]
[White "DishonorOnYourCow"]
[Black "Geller_Jakov"]
[Result "1-0"]
[WhiteElo "2453"]
[BlackElo "2591"]
[TimeControl "180+1"]
[EndTime "11:12:19 PST"]
[Termination "DishonorOnYourCow won on time"]

1. d4 {[%clk 0:03:00.9]} 1... d5 {[%clk 0:02:58.8]} 2. c4 {[%clk 0:03:00.7]}
2... e6 {[%clk 0:02:59.2]} 3. Nc3 {[%clk 0:02:59.6]} 3... c6 {[%clk 0:02:59.6]}
4. e4 {[%clk 0:02:58.3]} 4... dxe4 {[%clk 0:03:00.5]} 5. Nxe4 {[%clk 0:02:59]}
5... Bb4+ {[%clk 0:03:00.7]} 6. Nc3 {[%clk 0:02:59]} 6... e5 {[%clk 0:02:59.4]}
7. Be3 {[%clk 0:02:47.2]} 7... exd4 {[%clk 0:02:51.6]} 8. Qxd4 {[%clk
0:02:42.2]} 8... Qxd4 {[%clk 0:02:50.9]} 9. Bxd4 {[%clk 0:02:43.1]} 9... Nf6
{[%clk 0:02:50.7]} 10. O-O-O {[%clk 0:02:28]} 10... Be6 {[%clk 0:02:42.9]} 11.
Nf3 {[%clk 0:02:01]} 11... h6 {[%clk 0:02:41.8]} 12. Bd3 {[%clk 0:01:52.1]}
12... Nbd7 {[%clk 0:02:41.3]} 13. Rhe1 {[%clk 0:01:46.4]} 13... O-O-O {[%clk
0:02:38.9]} 14. a3 {[%clk 0:01:36]} 14... Bc5 {[%clk 0:02:39]} 15. Be2 {[%clk
0:01:14.8]} 15... Rhe8 {[%clk 0:02:36.3]} 16. b4 {[%clk 0:01:08.8]} 16... Bf8
{[%clk 0:02:13.8]} 17. Kb2 {[%clk 0:01:06.6]} 17... Nb6 {[%clk 0:02:08.5]} 18.
c5 {[%clk 0:00:53]} 18... Nbd5 {[%clk 0:02:00.2]} 19. Nxd5 {[%clk 0:00:51.1]}
19... Nxd5 {[%clk 0:01:59.3]} 20. Bc4 {[%clk 0:00:50.2]} 20... Be7 {[%clk
0:01:35.1]} 21. h3 {[%clk 0:00:38.2]} 21... g5 {[%clk 0:01:23.9]} 22. Bb3 {[%clk
0:00:35.3]} 22... Nf4 {[%clk 0:01:19.8]} 23. Bxe6+ {[%clk 0:00:31]} 23... Nxe6
{[%clk 0:01:19.9]} 24. Be3 {[%clk 0:00:30.6]} 24... Bf6+ {[%clk 0:01:19.5]} 25.
Kb3 {[%clk 0:00:30.2]} 25... Nc7 {[%clk 0:01:10.4]} 26. Kc4 {[%clk 0:00:29.9]}
26... Nd5 {[%clk 0:01:09.5]} 27. Bd4 {[%clk 0:00:22.1]} 27... Bxd4 {[%clk
0:01:08.5]} 28. Nxd4 {[%clk 0:00:22]} 28... Nf4 {[%clk 0:01:07.1]} 29. Nf5
{[%clk 0:00:20.6]} 29... Rxe1 {[%clk 0:00:46.9]} 30. Rxe1 {[%clk 0:00:18.8]}
30... Rd2 {[%clk 0:00:47.4]} 31. Re8+ {[%clk 0:00:17.6]} 31... Kc7 {[%clk
0:00:34.2]} 32. Re7+ {[%clk 0:00:17.8]} 32... Rd7 {[%clk 0:00:34.8]} 33. Rxd7+
{[%clk 0:00:17.4]} 33... Kxd7 {[%clk 0:00:35.7]} 34. Nxh6 {[%clk 0:00:17.7]}
34... Ke6 {[%clk 0:00:36.4]} 35. g3 {[%clk 0:00:13.8]} 35... Nxh3 {[%clk
0:00:36.3]} 36. f3 {[%clk 0:00:13.6]} 36... f5 {[%clk 0:00:22.7]} 37. Kd4 {[%clk
0:00:13.3]} 37... Nf2 {[%clk 0:00:16.4]} 38. g4 {[%clk 0:00:11.3]} 38... fxg4
{[%clk 0:00:11]} 39. Nxg4 {[%clk 0:00:11.8]} 39... Nh3 {[%clk 0:00:09.2]} 40.
Ke4 {[%clk 0:00:11.5]} 40... Nf4 {[%clk 0:00:09]} 41. Ne3 {[%clk 0:00:11.5]}
41... Ne2 {[%clk 0:00:07.2]} 42. Nc4 {[%clk 0:00:10.6]} 42... Nc3+ {[%clk
0:00:07.3]} 43. Kd3 {[%clk 0:00:10.6]} 43... Nb5 {[%clk 0:00:03.6]} 44. a4
{[%clk 0:00:09.8]} 44... Nc7 {[%clk 0:00:03.8]} 45. Na5 {[%clk 0:00:10.3]} 1-0

[Event "*** Titled Tuesday Blitz"]
[Site "Chess.com"]
[Date "2020.11.24"]
[Round "5"]
[White "barriochess"]
[Black "Escanor89"]
[Result "0-1"]
[WhiteElo "2368"]
[BlackElo "2523"]
[TimeControl "180+1"]
[EndTime "11:12:20 PST"]
[Termination "Escanor89 won by resignation"]

1. d4 {[%clk 0:03:00.9]} 1... d6 {[%clk 0:02:59.6]} 2. Nf3 {[%clk 0:02:59.1]}
2... Nd7 {[%clk 0:02:58.2]} 3. c4 {[%clk 0:02:52]} 3... Ngf6 {[%clk 0:02:58]} 4.
Nc3 {[%clk 0:02:51.1]} 4... g6 {[%clk 0:02:56.8]} 5. e4 {[%clk 0:02:49.8]} 5...
Bg7 {[%clk 0:02:56.8]} 6. Be2 {[%clk 0:02:49.1]} 6... O-O {[%clk 0:02:56.5]} 7.
O-O {[%clk 0:02:48.9]} 7... e5 {[%clk 0:02:56.7]} 8. Re1 {[%clk 0:02:47.2]} 8...
a5 {[%clk 0:02:51]} 9. b3 {[%clk 0:02:41.8]} 9... exd4 {[%clk 0:02:43.6]} 10.
Nxd4 {[%clk 0:02:41.3]} 10... Nc5 {[%clk 0:02:43.7]} 11. f3 {[%clk 0:02:34.9]}
11... Re8 {[%clk 0:02:31.5]} 12. Be3 {[%clk 0:02:26.9]} 12... c6 {[%clk
0:02:30.8]} 13. Bf1 {[%clk 0:02:22.9]} 13... Qc7 {[%clk 0:02:26.6]} 14. Rc1
{[%clk 0:02:22]} 14... Nh5 {[%clk 0:02:22.7]} 15. Qd2 {[%clk 0:02:13.4]} 15...
Bd7 {[%clk 0:02:11.3]} 16. g4 {[%clk 0:02:11.9]} 16... Nf6 {[%clk 0:02:10.6]}
17. Bg2 {[%clk 0:02:09]} 17... Rad8 {[%clk 0:02:10.4]} 18. Bf4 {[%clk
0:01:55.9]} 18... Bc8 {[%clk 0:02:05.2]} 19. Nc2 {[%clk 0:01:42.8]} 19... Ne6
{[%clk 0:01:53.6]} 20. Be3 {[%clk 0:01:42.1]} 20... h5 {[%clk 0:01:51.6]} 21. g5
{[%clk 0:01:39.1]} 21... Nd7 {[%clk 0:01:51.5]} 22. f4 {[%clk 0:01:34.2]} 22...
Nec5 {[%clk 0:01:48.4]} 23. Bd4 {[%clk 0:01:29.5]} 23... Bf8 {[%clk 0:01:39]}
24. Rcd1 {[%clk 0:01:25.2]} 24... Nb6 {[%clk 0:01:35.7]} 25. h3 {[%clk
0:01:18.9]} 25... a4 {[%clk 0:01:16.8]} 26. Rb1 {[%clk 0:01:14.6]} 26... axb3
{[%clk 0:01:16.3]} 27. axb3 {[%clk 0:01:15.5]} 27... Ne6 {[%clk 0:01:02]} 28.
Be3 {[%clk 0:01:11.3]} 28... Nd7 {[%clk 0:01:00.9]} 29. Qf2 {[%clk 0:01:04.8]}
29... Ndc5 {[%clk 0:00:57.7]} 30. Red1 {[%clk 0:01:02.9]} 30... Bg7 {[%clk
0:00:57.5]} 31. Qd2 {[%clk 0:00:47.3]} 31... Nf8 {[%clk 0:00:44.5]} 32. b4
{[%clk 0:00:43.8]} 32... Na6 {[%clk 0:00:43.4]} 33. Nd4 {[%clk 0:00:34.5]} 33...
Be6 {[%clk 0:00:41.1]} 34. Nd5 {[%clk 0:00:31]} 34... cxd5 {[%clk 0:00:38.9]}
35. cxd5 {[%clk 0:00:23.7]} 35... Bd7 {[%clk 0:00:39.1]} 36. Rdc1 {[%clk
0:00:22.5]} 36... Qb8 {[%clk 0:00:39.1]} 37. f5 {[%clk 0:00:20.3]} 37... Be5
{[%clk 0:00:37.4]} 38. h4 {[%clk 0:00:17.7]} 38... Rc8 {[%clk 0:00:37.5]} 39.
Ne6 {[%clk 0:00:15.3]} 39... Rxc1+ {[%clk 0:00:35.7]} 40. Rxc1 {[%clk
0:00:14.2]} 40... fxe6 {[%clk 0:00:35.7]} 41. dxe6 {[%clk 0:00:13.3]} 41... Nxe6
{[%clk 0:00:35.5]} 42. fxe6 {[%clk 0:00:12.8]} 42... Bxe6 {[%clk 0:00:35.7]} 43.
Bd4 {[%clk 0:00:12.3]} 43... Rc8 {[%clk 0:00:34.5]} 44. Rf1 {[%clk 0:00:11.8]}
44... Rf8 {[%clk 0:00:34.4]} 45. Rc1 {[%clk 0:00:11.3]} 45... Bg4 {[%clk
0:00:30.7]} 46. Bf1 {[%clk 0:00:10.3]} 46... Qe8 {[%clk 0:00:26.3]} 47. Bc4+
{[%clk 0:00:10.5]} 47... Kh8 {[%clk 0:00:25.9]} 48. Be3 {[%clk 0:00:09.9]} 48...
Be6 {[%clk 0:00:25]} 49. Bd5 {[%clk 0:00:08.1]} 49... Bxd5 {[%clk 0:00:24.8]}
50. Qxd5 {[%clk 0:00:08.7]} 50... Qd7 {[%clk 0:00:23.6]} 51. b5 {[%clk
0:00:08.4]} 51... Qg4+ {[%clk 0:00:22.5]} 0-1